bitfinex/quotes_ETHUSD_20260106
["timestamp","ask_amount","ask_price","bid_price","bid_amount"]
[1767682873566,1.81837438,3235.0,3234.1,3.09197684]
[1767682873732,3.72209939,3235.2,3234.2,1.77645074]
[1767682873936,0.809,3235.1,3234.2,1.77645074]
[1767682874265,0.82747575,3235.1,3234.2,1.77645074]
[1767682874467,0.01847575,3234.9,3234.2,1.77645074]
[1767682876268,0.82747575,3235.1,3234.2,1.77645074]
[1767682876469,3.91858163,3235.1,3234.2,1.95409581]
[1767682877841,0.01847575,3234.9,3234.2,1.95409581]
[1767682878360,0.01847575,3234.9,3234.5,0.001]
[1767682878558,3.91858163,3235.1,3234.5,0.001]
[1767682879592,1.81837438,3235.3,3234.5,1.77745074]
[1767682879776,0.809,3235.3,3234.5,1.77745074]
[1767682880290,0.809,3235.3,3234.6,0.17774507]
[1767682880469,0.809,3235.3,3234.7,1.77645074]
[1767682880675,3.89994231,3235.3,3234.7,1.77645074]
[1767682881071,0.809,3235.3,3234.7,1.77645074]
[1767682884368,0.01847575,3235.2,3234.5,0.001]
[1767682884574,0.01847575,3235.0,3234.5,0.001]
[1767682884776,1.81837438,3234.7,3233.7,2.235769]
[1767682885080,1.81837438,3234.7,3233.7,3.09242007]
[1767682885280,0.01847575,3234.8,3233.8,1.77645074]
[1767682885679,0.01847575,3234.8,3233.9,1.77645074]
[1767682886289,0.01847575,3234.6,3233.9,1.77645074]
[1767682886493,3.91894991,3234.8,3233.9,1.77645074]
[1767682886689,0.01847575,3234.6,3233.9,1.77645074]
[1767682886901,0.01847575,3234.4,3233.9,1.77645074]
[1767682887110,0.01847575,3234.4,3233.5,1.77645074]
[1767682887408,0.01847575,3234.6,3233.2,0.81]
[1767682887409,0.01847575,3234.3,3233.6,1.77645074]
[1767682887913,0.47805169,3234.2,3233.6,1.77645074]
[1767682888092,0.01847575,3234.2,3233.6,1.77645074]
[1767682888283,3.09159732,3234.6,3233.6,1.77645074]
[1767682888494,3.11007307,3234.6,3233.8,1.77645074]
[1767682889994,0.01847575,3234.6,3233.8,1.77645074]
[1767682890309,0.01847575,3234.6,3233.8,1.80737411]
[1767682890696,0.002,3234.8,3234.1,1.77645074]
[1767682890897,0.002,3234.8,3234.3,1.77645074]
[1767682891716,0.02047575,3235.1,3234.6,1.70659416]
[1767682891717,0.002,3235.1,3234.6,1.70659416]
[1767682892811,0.809,3235.3,3234.9,1.70659416]
[1767682892999,0.157776,3235.4,3234.9,1.70659416]
[1767682893205,0.157776,3235.4,3234.9,1.70459416]
[1767682893412,0.157776,3235.4,3234.6,7.66882563]
[1767682893711,0.157776,3235.4,3234.7,1.70659416]
[1767682893895,0.48446555,3235.4,3234.7,1.70659416]
[1767682894593,0.157776,3235.4,3234.8,1.70659416]
[1767682897206,0.01847575,3235.3,3234.8,1.70659416]
[1767682898622,0.01847575,3234.9,3234.5,1.70659416]
[1767682898834,0.01847575,3234.9,3233.7,3.09238618]
[1767682898835,3.0911901,3235.0,3233.9,1.70659416]
[1767682899122,3.0911901,3235.0,3234.0,1.70659416]
[1767682899123,0.01847575,3234.8,3234.0,1.70659416]
[1767682899918,0.01847575,3234.8,3234.1,1.70659416]
[1767682900218,0.01847575,3235.1,3234.2,1.70659416]
[1767682900403,0.01847575,3234.9,3234.3,1.70659416]
[1767682900602,0.01847575,3235.1,3234.3,1.70659416]
[1767682901901,0.01847575,3234.9,3234.3,1.70659416]
[1767682902102,0.01847575,3235.1,3234.4,1.73751179]
[1767682903018,0.01847575,3235.1,3234.4,1.70659416]
[1767682904040,0.01847575,3234.9,3234.4,1.70659416]
[1767682904535,0.01847575,3234.8,3234.6,0.001]
[1767682905806,4.86262888,3235.1,3234.6,0.001]
[1767682906111,0.01847575,3234.8,3234.6,0.001]
[1767682907036,0.01847575,3234.8,3234.1,1.70659416]
[1767682907226,0.01847575,3234.6,3234.1,1.70659416]
[1767682907431,0.01847575,3234.4,3234.1,1.70659416]
[1767682907735,0.01847575,3234.6,3234.1,1.70659416]
[1767682912049,0.01847575,3234.5,3233.7,1.70659416]
[1767682912228,1.75103463,3234.4,3233.7,1.70659416]
[1767682912429,0.01847575,3234.3,3233.7,1.70659416]
[1767682913124,1.76951038,3234.3,3233.4,5.60926935]
[1767682913329,1.76951038,3234.3,3233.4,1.70659416]
[1767682913548,1.76951038,3234.3,3233.5,4.79916189]
[1767682913749,0.01847575,3234.3,3233.6,1.70659416]
[1767682914328,1.76951038,3234.2,3233.4,3.90268689]
[1767682914530,1.76951038,3234.2,3233.4,3.09268689]
[1767682914741,1.75103463,3234.0,3233.3,0.81]
[1767682915565,1.89932412,3233.5,3232.5,3.09350915]
[1767682915737,0.01847575,3233.3,3232.4,1.75839248]
[1767682915933,0.01847575,3233.1,3232.6,3.45133491]
[1767682916265,0.01847575,3233.3,3232.6,3.45133491]
[1767682916563,1.88084837,3233.5,3232.6,0.35790874]
[1767682916762,0.01847575,3233.2,3232.5,3.09354689]
[1767682917266,0.01847575,3233.0,3232.6,1.75839248]
[1767682917972,0.01847575,3233.2,3232.6,1.75839248]
[1767682918180,0.01847575,3233.4,3232.6,1.75839248]
[1767682918472,0.01847575,3233.4,3232.4,6.18731131]
[1767682918473,0.01847575,3233.3,3233.0,0.01847575]
[1767682918680,1.89932412,3233.3,3233.0,0.01847575]
[1767682919161,1.88084837,3233.6,3233.0,0.01847575]
[1767682919336,0.01847575,3233.4,3233.0,0.01847575]
[1767682919537,0.01847575,3233.5,3233.0,0.01847575]
[1767682919747,1.89932412,3233.5,3233.0,0.01847575]
[1767682920142,0.01847575,3233.5,3233.0,1.77686823]
[1767682920548,0.01847575,3233.3,3233.0,1.77686823]
[1767682920730,0.01847575,3233.5,3233.0,1.77686823]
[1767682920936,0.01847575,3233.3,3233.0,1.77686823]
[1767682922252,0.01847575,3233.6,3233.0,1.77686823]
[1767682922451,0.01847575,3233.9,3233.1,2.71426672]
[1767682922639,0.01847575,3233.9,3233.2,1.87909664]
[1767682922840,0.01847575,3233.7,3233.4,1.87909664]
[1767682923177,0.01847575,3233.5,3233.4,1.87909664]
[1767682924510,0.01847575,3233.5,3233.0,0.01847575]
[1767682924780,0.01847575,3233.3,3233.0,1.89757239]
[1767682924994,0.01847575,3233.5,3233.1,1.87909664]
[1767682925266,0.01847575,3233.5,3233.0,0.5176612]
[1767682925462,0.37835027,3234.1,3233.1,0.02520353]
[1767682925668,0.01847575,3233.8,3233.1,1.87909664]
[1767682925842,0.01847575,3233.8,3233.2,1.35898548]
[1767682927245,0.01847575,3233.8,3233.3,1.90429862]
[1767682927440,0.01847575,3234.1,3233.3,1.90429862]
[1767682927645,0.01847575,3233.9,3233.3,1.90429862]
[1767682927845,0.01847575,3233.9,3233.5,1.87909664]
[1767682930164,0.002,3233.6,3233.5,1.87909664]
[1767682930364,0.02047575,3233.9,3233.4,0.63561657]
[1767682930564,0.02047575,3233.9,3233.4,3.72832527]
[1767682930862,0.02047575,3233.9,3233.5,1.87909664]
[1767682931062,0.02047575,3233.9,3233.6,1.87909664]
[1767682931264,0.002,3233.9,3233.6,1.87909664]
[1767682931976,0.01847575,3233.8,3233.6,1.87909664]
[1767682932173,0.002,3233.9,3233.6,1.87909664]
[1767682932372,0.01847575,3233.8,3233.6,1.87909664]
[1767682932578,0.01847575,3233.8,3233.5,0.56084982]
[1767682933589,0.002,3233.9,3233.5,3.65345251]
[1767682933790,0.01847575,3234.1,3233.6,3.4603812]
[1767682934089,0.01847575,3234.3,3233.7,1.87909664]
[1767682934292,0.01847575,3234.1,3233.7,1.87909664]
[1767682935202,0.01847575,3234.3,3233.8,1.87909664]
[1767682935388,0.01847575,3234.2,3233.7,0.81]
[1767682935591,0.01847575,3234.5,3233.8,2.61538761]
[1767682935896,0.01847575,3234.3,3233.8,2.61538761]
[1767682936300,0.01847575,3234.3,3233.8,5.70769444]
[1767682937467,0.01847575,3234.6,3233.9,1.87909664]
[1767682937795,0.01847575,3234.4,3233.9,2.84010934]
[1767682938695,0.01847575,3234.6,3233.9,5.93229713]
[1767682939166,0.01847575,3234.4,3233.9,5.93229713]
[1767682939367,0.01847575,3234.6,3233.9,4.05320049]
[1767682939590,0.01847575,3234.4,3234.0,0.71455073]
[1767682939794,0.01847575,3234.8,3234.1,1.87909664]
[1767682940004,0.01847575,3234.8,3234.0,0.71455073]
[1767682940005,0.01847575,3234.2,3234.0,0.71455073]
[1767682940167,0.47501356,3234.2,3233.7,0.81]
[1767682940367,0.01847575,3234.2,3233.7,0.81]
[1767682940587,0.01847575,3234.0,3233.7,0.81]
[1767682940800,0.01847575,3234.2,3233.7,0.81]
[1767682941005,0.01847575,3234.0,3233.7,0.81]
[1767682941173,0.01847575,3234.2,3233.7,1.20024651]
[1767682941373,0.01847575,3234.2,3233.8,1.87909664]
[1767682941903,0.01847575,3234.4,3233.9,1.87909664]
[1767682942104,0.01847575,3234.2,3233.9,1.87909664]
[1767682944390,0.002,3234.1,3233.9,1.87909664]
[1767682944595,0.01847575,3234.2,3233.9,1.87909664]
[1767682946394,0.01847575,3234.2,3234.0,1.87909664]
[1767682948685,0.02047575,3234.4,3234.0,1.87909664]
[1767682948885,0.01847575,3234.2,3234.0,1.87909664]
[1767682949511,0.01847575,3234.0,3233.7,1.20024651]
[1767682949705,0.01847575,3234.2,3234.0,0.01847575]
[1767682952427,0.02047575,3234.4,3234.0,1.81083193]
[1767682953735,0.01847575,3234.2,3234.0,1.81083193]
[1767682957398,0.002,3234.1,3234.0,1.81083193]
[1767682957723,0.02047575,3234.4,3234.0,0.01847575]
[1767682957724,1.99904638,3234.4,3234.0,0.01847575]
[1767682957920,0.01847575,3234.2,3234.0,0.01847575]
[1767682959232,1.97857063,3234.2,3234.0,0.01847575]
[1767682959536,0.02047575,3234.4,3234.0,0.01847575]
[1767682959721,0.02047575,3234.4,3234.0,1.81083193]
[1767682960106,0.02047575,3234.4,3234.0,0.01847575]
[1767682960309,0.01847575,3234.2,3234.0,0.01847575]
[1767682960623,1.97857063,3234.3,3233.9,3.09219084]
[1767682960831,1.97857063,3234.3,3233.8,3.90233586]
[1767682961131,0.002,3234.4,3234.0,1.79235618]
[1767682962064,0.01847575,3234.9,3234.1,1.79235618]
[1767682962537,0.68399568,3235.4,3234.6,1.79235618]
[1767682962829,0.02047575,3235.4,3234.6,2.60235618]
[1767682962996,0.01847575,3235.1,3234.7,0.26023562]
[1767682964414,0.01847575,3234.9,3234.7,0.26023562]
[1767682964930,0.01847575,3235.1,3234.7,0.26023562]
[1767682965131,0.01847575,3234.9,3234.7,0.26023562]
[1767682965330,0.69914939,3235.1,3234.7,0.26023562]
[1767682965635,0.01847575,3235.1,3234.7,2.0525918]
[1767682966646,0.01847575,3235.1,3234.8,0.51441476]
[1767682966815,0.01847575,3234.9,3234.7,0.26023562]
[1767682967011,0.70561128,3235.0,3234.7,0.26023562]
[1767682967227,0.01847575,3234.9,3234.7,0.26023562]
[1767682967445,0.01847575,3235.1,3234.9,0.01847573]
[1767682969222,0.01847575,3235.0,3234.9,0.01847573]
[1767682969438,0.01847575,3235.2,3234.9,0.01847573]
[1767682969636,0.01847575,3235.0,3234.9,0.01847573]
[1767682969833,0.7402547,3235.2,3234.9,0.01847573]
[1767682970033,0.01847575,3235.0,3234.9,0.01847573]
[1767682970233,0.01847575,3235.2,3234.9,0.01847573]
[1767682970431,0.01847575,3235.0,3234.9,0.01847573]
[1767682970644,0.002,3235.1,3234.9,0.01847573]
[1767682970950,0.01847575,3235.0,3234.9,1.81083191]
[1767682971241,0.002,3235.1,3234.9,1.81083191]
[1767682971242,0.002,3235.1,3234.9,0.01847573]
[1767682971448,0.01847575,3235.0,3234.9,0.01847573]
[1767682971651,1e-08,3235.0,3234.9,0.01847573]
[1767682974850,0.002,3235.1,3234.9,0.01847573]
[1767682975022,0.01847575,3235.0,3234.9,0.01847573]
[1767682975423,0.01847575,3235.2,3234.9,3.44677848]
[1767682975634,0.02047575,3235.4,3235.0,1.97330752]
[1767682975852,0.02047575,3235.4,3234.9,0.35549425]
[1767682975853,0.01847575,3235.2,3234.9,0.35549425]
[1767682976049,0.01847575,3235.0,3234.9,0.82847573]
[1767682976225,0.01847575,3235.2,3234.9,0.82847573]
[1767682976550,0.01847575,3235.0,3234.9,2.80178325]
[1767682976746,0.01847575,3235.2,3234.7,2.23354314]
[1767682976921,0.01847575,3234.7,3233.3,0.161]
[1767682977121,0.01847575,3234.9,3234.2,3.09193506]
[1767682977343,0.01847575,3234.7,3234.3,1.97330752]
[1767682978053,2.00220824,3234.9,3234.3,3.09185388]
[1767682978228,0.01847575,3234.7,3234.3,3.09185388]
[1767682978437,0.01847575,3234.9,3234.7,0.01847572]
[1767682978957,2.0125158,3234.9,3234.0,3.90210255]
[1767682979158,0.01847575,3234.6,3234.1,1.97330752]
[1767682979325,0.01847575,3234.3,3233.7,1.81930752]
[1767682979645,0.01847575,3234.3,3233.8,1.97330752]
[1767682979646,0.01847575,3234.1,3233.8,1.97330752]
[1767682980550,0.01847575,3234.1,3233.8,2.17063827]
[1767682980851,0.01847575,3234.3,3233.8,2.17063827]
[1767682981060,0.01847575,3234.3,3234.1,0.01847572]
[1767682981542,1.93083979,3234.2,3233.4,0.81]
[1767682981747,0.01847575,3234.0,3233.5,2.07566079]
[1767682981930,0.01847575,3234.0,3233.5,2.67359853]
[1767682982124,0.01847575,3233.9,3233.5,2.67359853]
[1767682982325,1.93083979,3234.0,3233.4,3.0927171]
[1767682982846,1.93083979,3234.0,3233.3,0.001]
[1767682982847,0.01847575,3233.9,3233.3,0.001]
[1767682983041,0.0060725,3233.9,3233.3,2.07666079]
[1767682983451,0.01847575,3233.7,3233.3,2.07666079]
[1767682983654,0.01847575,3233.5,3233.3,0.001]
[1767682983860,0.01847575,3233.7,3233.3,0.001]
[1767682984034,0.01847575,3233.5,3233.3,0.001]
[1767682984865,0.01847575,3233.5,3233.0,2.07566079]
[1767682985028,0.01847575,3233.2,3233.0,2.07566079]
[1767682985834,0.01847575,3233.1,3232.8,0.001]
[1767682986983,0.01847575,3233.3,3232.8,0.001]
[1767682987141,0.01847575,3233.1,3232.8,0.001]
[1767682988533,0.01847575,3233.0,3232.8,0.001]
[1767682989255,0.01847575,3233.1,3232.8,0.001]
[1767682991937,0.01847575,3233.3,3232.8,2.28432687]
[1767682992139,3.1113037,3233.3,3232.8,2.28432687]
[1767682993160,3.1113037,3233.3,3232.8,2.07666079]
[1767682993741,0.01847575,3233.3,3232.8,2.07666079]
[1767682993947,0.01847575,3233.3,3233.1,0.001]
[1767682995676,0.01847575,3233.7,3233.1,2.07666079]
[1767682995872,0.01847575,3233.3,3233.1,0.001]
[1767683001470,3.1112963,3233.3,3233.1,0.001]
[1767683001786,0.01847575,3233.3,3233.1,0.001]
[1767683004773,3.11129485,3233.3,3233.1,0.001]
[1767683005169,0.01847575,3233.3,3233.1,0.001]
[1767683009089,3.11129676,3233.3,3233.1,0.001]
[1767683009295,0.01847575,3233.3,3233.1,0.001]
[1767683009605,1.93083979,3232.9,3231.9,2.07566079]
[1767683009795,0.01847575,3232.7,3232.1,2.07566079]
[1767683010601,0.01847575,3232.7,3231.9,2.07566079]
[1767683010891,0.01847575,3232.7,3232.0,0.5169859]
[1767683011299,1.93083979,3232.9,3232.0,2.74342482]
[1767683011477,0.82847575,3233.1,3232.2,2.22643892]
[1767683011676,0.01847575,3232.9,3232.2,2.22643892]
[1767683011900,0.01847575,3232.9,3232.2,2.81018586]
[1767683012695,0.01847575,3232.9,3232.3,2.22643892]
[1767683013673,0.01847575,3233.0,3232.5,2.22643892]
[1767683013873,0.81,3233.1,3232.5,2.22643892]
[1767683014083,0.82847575,3233.1,3232.5,2.22643892]
[1767683015180,2.19035007,3233.5,3232.5,2.22643892]
[1767683015181,0.01847575,3233.5,3232.7,2.22643892]
[1767683015380,3.11112123,3233.5,3232.7,2.22643892]
[1767683015885,0.01847575,3233.5,3232.7,2.22643892]
[1767683017303,0.01847575,3233.5,3232.8,0.001]
[1767683017604,0.01847575,3233.5,3232.9,2.22643892]
[1767683018306,3.11110345,3233.5,3232.9,2.22643892]
[1767683018512,0.01847575,3233.5,3232.9,2.22643892]
[1767683019307,0.01847575,3233.5,3232.9,2.44918281]
[1767683020487,0.01847575,3233.7,3232.9,2.44918281]
[1767683021203,0.81,3233.8,3233.1,2.22643892]
[1767683021406,0.01847575,3233.9,3233.3,2.22643892]
[1767683021804,0.01847575,3233.5,3232.9,0.22274389]
[1767683022004,0.01847575,3233.3,3232.9,0.22274389]
[1767683022176,0.01847575,3233.3,3232.8,0.001]
[1767683026191,0.01847575,3233.4,3232.8,0.001]
[1767683026393,2.19035007,3233.2,3232.8,0.001]
[1767683026583,0.01847575,3233.2,3232.8,0.001]
[1767683026783,2.19035007,3233.4,3232.8,0.001]
[1767683027889,2.17187432,3233.4,3232.8,0.001]
[1767683028183,2.17187432,3233.4,3232.8,0.22374389]
[1767683029417,0.002,3233.0,3232.8,0.22374389]
[1767683029585,2.17187432,3233.2,3232.8,0.22374389]
[1767683029915,0.002,3233.3,3232.9,0.03093198]
[1767683030094,0.002,3233.3,3232.8,3.31698627]
[1767683030416,2.17187432,3233.5,3232.9,0.33169863]
[1767683030710,2.19035007,3233.9,3233.0,3.09310238]
[1767683030881,2.17187432,3233.9,3233.1,0.03093006]
[1767683031084,2.19035007,3234.4,3233.5,0.0184758]
[1767683031306,2.80159725,3234.4,3233.5,2.24491472]
[1767683031514,5.8933681,3234.4,3233.5,2.24491472]
[1767683031712,0.01847575,3234.2,3233.5,2.24491472]
[1767683034214,0.01847575,3234.0,3233.5,2.24491472]
[1767683037146,0.01847575,3234.0,3233.5,0.0184758]
[1767683037320,2.26692586,3234.2,3233.5,0.41060319]
[1767683038002,0.01847575,3234.0,3233.5,0.41060319]
[1767683039293,2.26692586,3234.2,3233.5,0.41060319]
[1767683039491,0.01847575,3234.2,3233.6,2.29093275]
[1767683039690,0.01847575,3234.4,3233.6,2.29093275]
[1767683039987,2.26692586,3234.4,3233.7,2.87344061]
[1767683040391,2.26692586,3234.4,3233.7,0.58250786]
[1767683042143,0.002,3234.0,3233.7,0.58250786]
[1767683042432,3.11205926,3234.6,3233.8,2.20165909]
[1767683042737,0.01847575,3234.4,3233.9,0.59075125]
[1767683042909,0.01847575,3234.4,3233.7,2.78416695]
[1767683045337,0.01847575,3234.3,3233.7,2.78416695]
[1767683045519,5.2363616,3234.4,3233.7,2.20165909]
[1767683045520,0.01847575,3234.2,3233.7,2.20165909]
[1767683047641,2.16305849,3234.4,3233.7,2.20165909]
[1767683049241,5.2548375,3234.4,3233.7,2.20165909]
[1767683049426,0.01847575,3234.2,3233.7,2.20165909]
[1767683050241,2.16305849,3234.4,3233.7,2.20165909]
[1767683050439,0.01847575,3234.4,3233.8,2.20165909]
[1767683050614,3.11206707,3234.6,3233.8,2.20165909]
[1767683051350,3.0912451,3235.0,3234.4,2.20165909]
[1767683051551,3.0912451,3235.0,3234.2,2.20165909]
[1767683051552,0.01847575,3234.9,3234.2,2.20165909]
[1767683051841,0.01847575,3234.5,3234.2,0.610379]
[1767683052054,2.16305849,3234.7,3234.0,0.81]
[1767683052208,0.01847575,3234.5,3234.0,2.20165909]
[1767683054256,0.01847575,3234.5,3234.0,2.20265909]
[1767683054432,0.002,3234.2,3234.0,2.20265909]
[1767683054633,1.08157262,3234.5,3234.0,0.001]
[1767683054834,1.08357262,3234.5,3234.0,0.39132342]
[1767683055033,0.02047575,3234.5,3234.1,2.20165909]
[1767683057053,0.002,3234.5,3234.1,2.20165909]
[1767683058153,0.002,3234.5,3233.7,0.65148685]
[1767683058154,1.08073578,3234.3,3233.7,0.65148685]
[1767683058445,0.01847575,3234.4,3232.7,0.25952256]
[1767683058446,0.01847575,3233.4,3233.1,2.20265909]
[1767683058615,0.01847575,3233.5,3233.1,0.001]
[1767683058823,0.01847575,3233.5,3233.1,2.20265909]
[1767683061543,0.01847575,3233.3,3232.5,2.20165909]
[1767683062054,0.01847575,3233.1,3232.5,2.20165909]
[1767683062226,0.01847575,3233.3,3232.5,2.20165909]
[1767683062957,0.01847575,3233.1,3232.5,2.20165909]
[1767683064926,1.10567526,3233.0,3232.3,3.90373318]
[1767683065248,1.10567526,3233.0,3232.4,0.61053923]
[1767683065759,1.10567526,3233.0,3232.4,3.7041798]
[1767683067047,0.01847575,3233.3,3232.4,3.7041798]
[1767683067249,0.01847575,3233.3,3232.4,5.90583889]
[1767683067459,0.01847575,3233.3,3232.8,0.001]
[1767683067756,0.002,3233.2,3232.8,0.001]
[1767683068331,0.002,3233.2,3232.9,2.20165909]
[1767683071739,0.01847575,3233.1,3232.8,0.001]
[1767683078268,0.01847575,3233.0,3232.8,0.001]
[1767683079182,0.01847575,3233.0,3231.4,3.83]
[1767683079183,2.33309805,3232.9,3231.4,3.83]
[1767683079476,2.3146223,3232.6,3231.7,3.9043155]
[1767683079974,2.3146223,3232.6,3231.7,3.0943155]
[1767683080173,2.3146223,3232.4,3231.4,0.309]
[1767683080345,2.3146223,3232.4,3231.5,3.712658]
[1767683081168,2.3146223,3232.2,3231.5,3.712658]
[1767683081671,0.01847575,3232.3,3231.6,2.26936862]
[1767683081981,0.01847575,3232.3,3231.4,2.26936862]
[1767683082476,0.01847575,3232.1,3231.4,2.26936862]
[1767683084472,6.18658746,3232.8,3231.5,2.26936862]
[1767683084699,0.01847575,3232.5,3231.5,2.26936862]
[1767683085198,3.09367652,3232.4,3231.5,2.26936862]
[1767683085473,0.01847575,3232.3,3231.5,2.26936862]
[1767683089285,2.3146223,3232.2,3231.4,3.40254559]
[1767683089481,2.3146223,3232.2,3231.5,0.88034089]
[1767683090288,2.3146223,3232.2,3231.4,3.40250753]
[1767683092065,3.11210079,3232.5,3231.5,2.26936862]
[1767683092582,0.01847575,3232.3,3231.8,0.001]
[1767683093086,0.01847575,3232.3,3231.8,2.27036862]
[1767683094986,0.01847575,3232.5,3232.0,2.26936862]
[1767683095176,3.11205719,3232.5,3232.0,2.26936862]
[1767683095564,3.81360458,3232.5,3232.0,2.26936862]
[1767683096084,0.01847575,3232.3,3231.8,0.001]
[1767683098687,0.01847575,3232.3,3231.8,2.21918457]
[1767683100162,3.11225303,3232.3,3231.8,2.21918457]
[1767683100598,0.01847575,3232.3,3231.8,2.21918457]
[1767683102097,3.11207997,3232.5,3231.8,2.21918457]
[1767683102671,3.33789963,3233.0,3232.0,2.38263205]
[1767683102870,5.62101821,3233.0,3232.2,2.38263205]
[1767683103176,0.01847575,3232.9,3232.2,2.38263205]
[1767683103482,0.01847575,3232.7,3231.9,2.38263205]
[1767683103684,2.21654477,3232.5,3231.8,0.001]
[1767683103886,2.21654477,3232.3,3231.8,0.001]
[1767683105779,0.01847575,3232.4,3231.8,0.001]
[1767683106172,2.23502052,3232.4,3231.8,0.2393632]
[1767683106382,2.21654477,3232.4,3231.8,0.001]
[1767683107812,0.01847575,3232.6,3231.9,2.38263205]
[1767683107989,3.11196523,3232.6,3231.9,2.38263205]
[1767683108208,3.09348948,3232.6,3231.9,2.38263205]
[1767683108520,0.01847575,3232.5,3231.9,2.38263205]
[1767683108672,0.01847575,3232.7,3232.0,2.41357264]
[1767683108874,0.01847575,3232.9,3232.0,2.41357264]
[1767683109079,0.02047575,3233.2,3232.3,2.38263205]
[1767683109915,0.002,3233.5,3233.0,2.38263205]
[1767683110114,0.01847575,3233.3,3232.4,2.38263205]
[1767683110313,0.01847575,3233.3,3232.6,2.38263205]
[1767683110682,0.01847575,3233.3,3232.8,2.38263205]
[1767683111612,0.002,3233.5,3232.8,2.38263205]
[1767683111828,0.01847575,3233.4,3232.8,2.38263205]
[1767683113516,0.01847575,3233.4,3232.8,5.47592547]
[1767683113720,0.01847575,3233.4,3232.9,2.9302246]
[1767683113923,0.002,3233.5,3233.0,2.38263205]
[1767683115729,0.002,3233.5,3232.9,0.54759255]
[1767683116083,0.002,3233.5,3232.9,2.9302246]
[1767683116292,0.01847575,3233.4,3232.9,2.9302246]
[1767683116912,0.002,3233.1,3232.9,2.9302246]
[1767683117084,0.01847575,3233.4,3233.0,0.29302246]
[1767683117286,0.02047575,3233.4,3233.0,0.29302246]
[1767683118701,0.02047575,3233.4,3232.6,2.38263205]
[1767683119255,0.02047575,3233.4,3232.7,5.47596186]
[1767683119529,0.02047575,3233.4,3232.8,2.38263205]
[1767683119762,0.002,3233.4,3232.9,3.09319466]
[1767683119889,0.002,3233.4,3233.1,2.38263205]
[1767683121212,0.002,3233.4,3232.8,5.47584801]
[1767683121416,0.002,3233.4,3232.9,0.5475848]
[1767683122390,0.002,3233.4,3232.9,2.93021685]
[1767683123219,0.002,3233.4,3232.9,6.02341174]
[1767683124030,0.002,3233.4,3232.9,2.93021685]
[1767683124906,0.002,3233.4,3232.9,6.02339855]
[1767683125107,0.002,3233.4,3233.0,0.60233986]
[1767683125333,0.002,3233.4,3233.0,2.98497191]
[1767683125644,0.002,3233.4,3233.1,2.38263205]
[1767683131638,0.002,3233.5,3233.2,2.39459094]
[1767683140627,2.45387736,3234.0,3233.2,2.39459094]
[1767683140828,2.45387736,3234.0,3233.3,0.5487536]
[1767683141235,0.01847575,3233.9,3233.3,0.5487536]
[1767683141640,0.01847575,3233.9,3233.3,2.94334454]
[1767683142858,0.01847575,3233.9,3233.3,2.39459094]
[1767683143342,0.01847575,3233.9,3233.3,5.48738461]
[1767683143864,0.002,3233.6,3233.3,2.39459094]
[1767683144042,2.47435311,3233.9,3233.2,3.09287179]
[1767683145144,2.47435311,3233.9,3233.1,5.48755512]
[1767683145444,2.47435311,3233.9,3233.2,0.6089895]
[1767683145643,2.45387736,3233.8,3233.2,0.6089895]
[1767683145961,2.45387736,3233.8,3233.0,3.69541105]
[1767683147357,0.02047575,3233.9,3233.1,2.39459094]
[1767683147662,2.47435311,3233.9,3233.1,2.39459094]
[1767683148036,2.45587736,3233.9,3233.1,2.39459094]
[1767683148261,0.002,3233.9,3233.3,2.39459094]
[1767683148445,0.002,3233.9,3233.5,2.39459094]
[1767683148640,0.002,3233.9,3233.6,0.03092528]
[1767683148869,0.002,3233.9,3233.5,2.39459094]
[1767683149063,0.002,3233.9,3233.6,2.42551622]
[1767683149362,0.002,3233.9,3233.6,2.39459094]
[1767683149566,0.002,3233.9,3233.4,0.5487502]
[1767683149862,0.002,3233.9,3233.5,0.29433411]
[1767683150170,2.45387736,3233.7,3233.0,3.69537925]
[1767683150569,0.02047575,3233.9,3233.1,2.39459094]
[1767683150966,2.47435311,3233.9,3233.1,2.39459094]
[1767683151870,2.45387736,3233.8,3233.1,2.39459094]
[1767683156567,2.45387736,3233.8,3233.4,0.001]
[1767683156868,0.02047575,3233.9,3233.4,0.001]
[1767683156869,0.002,3233.6,3233.4,0.001]
[1767683157241,2.4040614,3233.6,3233.4,0.001]
[1767683158271,0.002,3233.6,3233.4,0.001]
[1767683159640,0.002,3233.6,3233.4,2.37302285]
[1767683161676,0.002,3233.6,3233.4,0.001]
[1767683169592,3.08770364,3233.6,3232.8,6.26022246]
[1767683169753,3.08770364,3233.6,3232.8,0.81]
[1767683169953,3.08770364,3233.6,3232.7,0.81]
[1767683170184,2.52588098,3233.6,3232.7,0.81]
[1767683170483,2.52388098,3233.5,3232.7,0.81]
[1767683170798,2.52388098,3233.5,3232.5,5.45051384]
[1767683170799,2.52388098,3233.5,3232.5,2.35697453]
[1767683170952,2.52388098,3233.5,3232.6,0.81]
[1767683171769,2.52388098,3233.5,3232.7,2.35697453]
[1767683171972,3.39497805,3233.4,3232.7,2.35697453]
[1767683172156,2.52388098,3233.3,3232.7,2.35697453]
[1767683175056,5.61670522,3233.3,3232.7,2.35697453]
[1767683176689,5.61546817,3233.3,3232.7,2.35697453]
[1767683180684,2.52388098,3233.2,3232.4,3.16697453]
[1767683180893,2.23981718,3233.2,3232.5,2.35697453]
[1767683181209,2.23981718,3233.2,3231.8,3.83]
[1767683181210,0.01847575,3232.9,3231.3,3.83]
[1767683181374,2.52388098,3232.8,3231.7,2.35697453]
[1767683182810,2.52388098,3232.6,3231.7,2.35697453]
[1767683183577,2.52388098,3232.6,3231.7,5.45131272]
[1767683183877,2.52388098,3232.6,3231.8,2.9021058]
[1767683184904,5.61737206,3232.6,3231.8,2.9021058]
[1767683185303,2.52388098,3232.5,3231.8,2.9021058]
[1767683186079,2.52388098,3232.8,3231.8,2.9021058]
[1767683186284,2.52388098,3232.8,3231.9,2.35697453]
[1767683186285,5.61721387,3232.8,3231.9,2.35697453]
[1767683186494,5.61721387,3232.8,3232.0,2.35697453]
[1767683186689,2.52388098,3233.0,3232.0,2.35697453]
[1767683187016,5.61679202,3233.2,3232.3,2.35697453]
[1767683187306,2.52388098,3233.1,3232.3,2.35697453]
[1767683187506,2.52388098,3233.1,3232.4,2.90205865]
[1767683188694,3.11122397,3233.4,3232.4,2.90205865]
[1767683188899,2.52388098,3233.3,3232.4,2.90205865]
[1767683189407,2.52388098,3233.3,3232.5,2.35697453]
[1767683189615,5.616701,3233.3,3232.5,2.35697453]
[1767683189904,2.52388098,3233.3,3232.6,2.6471804]
[1767683193617,0.002,3233.0,3232.6,2.6471804]
[1767683194309,0.002,3233.0,3232.7,2.51961131]
[1767683194812,0.002,3233.3,3232.7,2.51961131]
[1767683195331,0.002,3233.6,3232.7,2.51961131]